[Event "*** Titled Tuesday Blitz"]
[Site "Chess.com"]
[Date "2020.12.29"]
[Round "2"]
[White "AlessiaSanteramo"]
[Black "Triumphmate"]
[Result "0-1"]
[WhiteElo "2135"]
[BlackElo "2400"]
[TimeControl "180+1"]
[EndTime "10:14:22 PST"]
[Termination "Triumphmate won by checkmate"]

1. e4 {[%clk 0:03:00.9]} 1... d5 {[%clk 0:02:54.6]} 2. exd5 {[%clk 0:03:00.6]}
2... Nf6 {[%clk 0:02:52.9]} 3. d4 {[%clk 0:03:00.1]} 3... Bg4 {[%clk 0:02:46.5]}
4. Be2 {[%clk 0:02:57.6]} 4... Bxe2 {[%clk 0:02:29]} 5. Qxe2 {[%clk 0:02:58.5]}
5... Qxd5 {[%clk 0:02:29.7]} 6. Nf3 {[%clk 0:02:57]} 6... Nc6 {[%clk 0:02:29.7]}
7. Be3 {[%clk 0:02:55.3]} 7... e6 {[%clk 0:02:28.5]} 8. Nc3 {[%clk 0:02:55.4]}
8... Qd7 {[%clk 0:02:26.6]} 9. O-O-O {[%clk 0:02:55.3]} 9... Bb4 {[%clk
0:02:21]} 10. d5 {[%clk 0:02:47.3]} 10... Bxc3 {[%clk 0:02:17.6]} 11. dxc6
{[%clk 0:02:45.3]} 11... Bxb2+ {[%clk 0:02:08.6]} 12. Kxb2 {[%clk 0:02:45.4]}
12... Qxc6 {[%clk 0:02:09.5]} 13. Nd4 {[%clk 0:02:43.3]} 13... Qb6+ {[%clk
0:02:08.5]} 14. Qb5+ {[%clk 0:02:43]} 14... c6 {[%clk 0:02:07.5]} 15. Qxb6
{[%clk 0:02:42.4]} 15... axb6 {[%clk 0:02:08.4]} 16. c4 {[%clk 0:02:30.2]} 16...
O-O {[%clk 0:02:07.1]} 17. f3 {[%clk 0:02:30.3]} 17... Ra4 {[%clk 0:02:04.2]}
18. Nb3 {[%clk 0:02:22.4]} 18... Rfa8 {[%clk 0:02:03.5]} 19. Ra1 {[%clk
0:02:18.1]} 19... Rxc4 {[%clk 0:02:00.2]} 20. Bxb6 {[%clk 0:02:17.1]} 20... Nd5
{[%clk 0:02:00.8]} 21. Bf2 {[%clk 0:02:15.2]} 21... Nb4 {[%clk 0:02:00.6]} 22.
Bc5 {[%clk 0:01:52.5]} 22... Nd3+ {[%clk 0:01:56.5]} 23. Kb1 {[%clk 0:01:52.2]}
23... Nxc5 {[%clk 0:01:56.3]} 24. Nxc5 {[%clk 0:01:52.4]} 24... Rxc5 {[%clk
0:01:57.2]} 25. Kb2 {[%clk 0:01:51.8]} 25... Ra6 {[%clk 0:01:55.1]} 26. a3
{[%clk 0:01:51.2]} 26... Rb6+ {[%clk 0:01:54.7]} 27. Ka2 {[%clk 0:01:49.3]}
27... Rc2# {[%clk 0:01:55.3]} 0-1

[Event "*** Titled Tuesday Blitz"]
[Site "Chess.com"]
[Date "2020.12.29"]
[Round "2"]
[White "AlexeiShirov"]
[Black "Brave_spirit12"]
[Result "1-0"]
[WhiteElo "2831"]
[BlackElo "2538"]
[TimeControl "180+1"]
[EndTime "10:15:23 PST"]
[Termination "AlexeiShirov won by resignation"]

1. e4 {[%clk 0:03:00.9]} 1... e6 {[%clk 0:03:00.2]} 2. d4 {[%clk 0:02:58]} 2...
d5 {[%clk 0:03:01.1]} 3. e5 {[%clk 0:02:58]} 3... c5 {[%clk 0:03:01.1]} 4. c3
{[%clk 0:02:58.1]} 4... Nc6 {[%clk 0:03:01]} 5. Nf3 {[%clk 0:02:57.9]} 5... Qb6
{[%clk 0:03:00.9]} 6. Be2 {[%clk 0:02:56.4]} 6... f6 {[%clk 0:03:00.9]} 7. O-O
{[%clk 0:02:46.5]} 7... c4 {[%clk 0:02:58.4]} 8. b3 {[%clk 0:02:42.1]} 8... cxb3
{[%clk 0:02:55.9]} 9. axb3 {[%clk 0:02:41.5]} 9... g6 {[%clk 0:02:53.9]} 10. Na3
{[%clk 0:02:38.3]} 10... Bd7 {[%clk 0:02:46.1]} 11. Nb5 {[%clk 0:02:37.2]} 11...
a6 {[%clk 0:02:43.7]} 12. c4 {[%clk 0:02:11.2]} 12... Rc8 {[%clk 0:02:36.3]} 13.
Nd6+ {[%clk 0:02:09.6]} 13... Bxd6 {[%clk 0:02:35.6]} 14. exd6 {[%clk
0:02:09.5]} 14... Kf7 {[%clk 0:02:23.6]} 15. c5 {[%clk 0:02:05.7]} 15... Qd8
{[%clk 0:02:19.8]} 16. b4 {[%clk 0:02:04.1]} 16... Nxb4 {[%clk 0:02:11.1]} 17.
Rb1 {[%clk 0:02:02.6]} 17... a5 {[%clk 0:02:09.5]} 18. Ba3 {[%clk 0:01:57.3]}
18... Bc6 {[%clk 0:02:06.1]} 19. Bxb4 {[%clk 0:01:55.6]} 19... axb4 {[%clk
0:02:04.7]} 20. Rxb4 {[%clk 0:01:55.3]} 20... Qd7 {[%clk 0:02:02.3]} 21. Qb3
{[%clk 0:01:53]} 21... Nh6 {[%clk 0:02:01.9]} 22. Bb5 {[%clk 0:01:50.8]} 22...
Bxb5 {[%clk 0:01:57.7]} 23. Rxb5 {[%clk 0:01:50.4]} 23... Rb8 {[%clk 0:01:57.8]}
24. Rb1 {[%clk 0:01:50.1]} 24... g5 {[%clk 0:01:39.2]} 25. Rxb7 {[%clk
0:01:47.2]} 25... Rxb7 {[%clk 0:01:39.2]} 26. Qxb7 {[%clk 0:01:46.2]} 26... Qxb7
{[%clk 0:01:38.8]} 27. Rxb7+ {[%clk 0:01:44.8]} 27... Kg6 {[%clk 0:01:39.5]} 28.
d7 {[%clk 0:01:39.8]} 28... Ra8 {[%clk 0:01:39.5]} 29. h3 {[%clk 0:01:37.5]}
29... Nf7 {[%clk 0:01:39.6]} 30. c6 {[%clk 0:01:36.5]} 30... Nd8 {[%clk
0:01:22.1]} 31. c7 {[%clk 0:01:33.1]} 1-0

[Event "*** Titled Tuesday Blitz"]
[Site "Chess.com"]
[Date "2020.12.29"]
[Round "2"]
[White "Ze-Pequeno"]
[Black "krzyzan94"]
[Result "0-1"]
[WhiteElo "2325"]
[BlackElo "2644"]
[TimeControl "180+1"]
[EndTime "10:15:31 PST"]
[Termination "krzyzan94 won by resignation"]

1. e4 {[%clk 0:03:00.9]} 1... e5 {[%clk 0:02:56.7]} 2. Nf3 {[%clk 0:03:00.7]}
2... Nc6 {[%clk 0:02:56.7]} 3. Nc3 {[%clk 0:03:00.8]} 3... Nf6 {[%clk
0:02:55.9]} 4. d4 {[%clk 0:03:00.8]} 4... exd4 {[%clk 0:02:54.5]} 5. Nxd4 {[%clk
0:03:01.7]} 5... Bb4 {[%clk 0:02:52.6]} 6. Nxc6 {[%clk 0:03:01.4]} 6... bxc6
{[%clk 0:02:50.8]} 7. Bd3 {[%clk 0:03:02.3]} 7... d5 {[%clk 0:02:51]} 8. exd5
{[%clk 0:03:03.2]} 8... O-O {[%clk 0:02:51.4]} 9. O-O {[%clk 0:03:03]} 9... Bg4
{[%clk 0:02:50.5]} 10. Be2 {[%clk 0:03:02.8]} 10... Bxe2 {[%clk 0:02:43.1]} 11.
Nxe2 {[%clk 0:03:01.5]} 11... cxd5 {[%clk 0:02:41.7]} 12. Bg5 {[%clk 0:03:00.5]}
12... Be7 {[%clk 0:02:37.3]} 13. Nd4 {[%clk 0:02:58.3]} 13... Qd7 {[%clk
0:02:34.3]} 14. Qf3 {[%clk 0:02:54.8]} 14... Ne4 {[%clk 0:02:26.8]} 15. Bxe7
{[%clk 0:02:30.4]} 15... Qxe7 {[%clk 0:02:27.7]} 16. Rfe1 {[%clk 0:02:20.5]}
16... Rfe8 {[%clk 0:02:20.8]} 17. c3 {[%clk 0:02:09.1]} 17... g6 {[%clk
0:01:59.2]} 18. Rad1 {[%clk 0:01:59.3]} 18... c5 {[%clk 0:01:52]} 19. Nb3 {[%clk
0:01:50.5]} 19... Rad8 {[%clk 0:01:46.8]} 20. h3 {[%clk 0:01:47.5]} 20... Ng5
{[%clk 0:01:36.4]} 21. Qf4 {[%clk 0:01:28.1]} 21... Qxe1+ {[%clk 0:01:33.9]} 22.
Rxe1 {[%clk 0:01:28]} 22... Rxe1+ {[%clk 0:01:34.8]} 23. Kh2 {[%clk 0:01:28.1]}
23... Ne6 {[%clk 0:01:32.7]} 24. Qf6 {[%clk 0:01:26.9]} 24... Re8 {[%clk
0:01:25.8]} 25. Na5 {[%clk 0:01:19.3]} 25... d4 {[%clk 0:01:23.7]} 26. c4 {[%clk
0:01:15.7]} 26... d3 {[%clk 0:01:21.6]} 27. Nc6 {[%clk 0:01:15.3]} 0-1

[Event "*** Titled Tuesday Blitz"]
[Site "Chess.com"]
[Date "2020.12.29"]
[Round "2"]
[White "lacafi"]
[Black "skoularikii"]
[Result "0-1"]
[WhiteElo "2125"]
[BlackElo "2610"]
[TimeControl "180+1"]
[EndTime "10:15:34 PST"]
[Termination "skoularikii won by resignation"]

1. d4 {[%clk 0:03:00.9]} 1... d5 {[%clk 0:02:59.7]} 2. Nf3 {[%clk 0:03:00.8]}
2... Nf6 {[%clk 0:02:58.9]} 3. e3 {[%clk 0:03:00.7]} 3... g6 {[%clk 0:02:58.4]}
4. b3 {[%clk 0:02:59.8]} 4... Bg7 {[%clk 0:02:58.4]} 5. Bb2 {[%clk 0:03:00.5]}
5... O-O {[%clk 0:02:58.8]} 6. Be2 {[%clk 0:03:01.2]} 6... c5 {[%clk 0:02:56.7]}
7. O-O {[%clk 0:03:01.1]} 7... cxd4 {[%clk 0:02:56]} 8. exd4 {[%clk 0:03:01.2]}
8... Nh5 {[%clk 0:02:56]} 9. g3 {[%clk 0:02:56.9]} 9... Bh3 {[%clk 0:02:52.7]}
10. Re1 {[%clk 0:02:56.7]} 10... Nf6 {[%clk 0:02:52.4]} 11. c4 {[%clk
0:02:54.5]} 11... Nc6 {[%clk 0:02:52.1]} 12. c5 {[%clk 0:02:51.9]} 12... Ne4
{[%clk 0:02:44.8]} 13. a3 {[%clk 0:02:45.9]} 13... a5 {[%clk 0:02:40.1]} 14.
Nbd2 {[%clk 0:02:26.4]} 14... Nxc5 {[%clk 0:02:38.4]} 15. Rc1 {[%clk 0:02:11.8]}
15... Ne6 {[%clk 0:02:31.6]} 16. Nf1 {[%clk 0:02:04.7]} 16... Qb6 {[%clk
0:02:20.4]} 17. Ne3 {[%clk 0:02:01.8]} 17... Rfd8 {[%clk 0:02:15.2]} 18. Rxc6
{[%clk 0:00:50.4]} 18... bxc6 {[%clk 0:02:14.2]} 19. Ne5 {[%clk 0:00:48.8]}
19... Rab8 {[%clk 0:02:00.8]} 20. b4 {[%clk 0:00:36.2]} 20... axb4 {[%clk
0:01:58.9]} 21. axb4 {[%clk 0:00:37.1]} 21... Qxb4 {[%clk 0:01:58.1]} 22. Nxc6
{[%clk 0:00:31.5]} 22... Qxb2 {[%clk 0:01:58]} 23. Nxb8 {[%clk 0:00:30.5]} 23...
Qxb8 {[%clk 0:01:56.7]} 0-1

[Event "*** Titled Tuesday Blitz"]
[Site "Chess.com"]
[Date "2020.12.29"]
[Round "2"]
[White "Walter_White_Poland"]
[Black "Korchmar_Vasiliy"]
[Result "1/2-1/2"]
[WhiteElo "2326"]
[BlackElo "2563"]
[TimeControl "180+1"]
[EndTime "10:15:43 PST"]
[Termination "Game drawn by repetition"]

1. e4 {[%clk 0:03:00.9]} 1... c5 {[%clk 0:02:59.8]} 2. Nf3 {[%clk 0:03:00.6]}
2... d6 {[%clk 0:03:00.2]} 3. d4 {[%clk 0:03:00.6]} 3... cxd4 {[%clk 0:03:01.1]}
4. Nxd4 {[%clk 0:03:00.8]} 4... Nf6 {[%clk 0:03:01.8]} 5. Nc3 {[%clk 0:03:01]}
5... Nc6 {[%clk 0:03:02.5]} 6. Bg5 {[%clk 0:03:00.6]} 6... e6 {[%clk 0:03:02.7]}
7. Qd2 {[%clk 0:02:59.9]} 7... a6 {[%clk 0:03:03.2]} 8. O-O-O {[%clk 0:02:59.6]}
8... h6 {[%clk 0:03:03.7]} 9. Bxf6 {[%clk 0:02:43.9]} 9... Qxf6 {[%clk
0:03:02.7]} 10. Nxc6 {[%clk 0:02:44.1]} 10... bxc6 {[%clk 0:03:03.6]} 11. Bc4
{[%clk 0:02:34]} 11... Qd8 {[%clk 0:03:03.1]} 12. Kb1 {[%clk 0:01:22.5]} 12...
Be7 {[%clk 0:03:03]} 13. h4 {[%clk 0:01:12.1]} 13... O-O {[%clk 0:03:02.8]} 14.
g4 {[%clk 0:01:12]} 14... d5 {[%clk 0:03:03.5]} 15. Bb3 {[%clk 0:01:07]} 15...
Bxh4 {[%clk 0:02:16.2]} 16. f4 {[%clk 0:01:05.6]} 16... e5 {[%clk 0:02:14.3]}
17. g5 {[%clk 0:01:00]} 17... hxg5 {[%clk 0:02:13.6]} 18. fxe5 {[%clk
0:00:59.2]} 18... Bg4 {[%clk 0:01:59.1]} 19. Rdg1 {[%clk 0:00:56.8]} 19... Bf3
{[%clk 0:01:59.6]} 20. Rxh4 {[%clk 0:00:56.4]} 20... gxh4 {[%clk 0:01:56.5]} 21.
Qh6 {[%clk 0:00:49.7]} 21... g6 {[%clk 0:01:56.9]} 22. Rxg6+ {[%clk 0:00:19.5]}
22... fxg6 {[%clk 0:01:57.8]} 23. Qxg6+ {[%clk 0:00:19.8]} 23... Kh8 {[%clk
0:01:58.5]} 24. Qh6+ {[%clk 0:00:20.2]} 24... Kg8 {[%clk 0:01:59.2]} 25. Qg6+
{[%clk 0:00:20.6]} 25... Kh8 {[%clk 0:01:59.8]} 26. Qh6+ {[%clk 0:00:21]} 26...
Kg8 {[%clk 0:02:00.4]} 27. Qg6+ {[%clk 0:00:21.1]} 1/2-1/2

[Event "*** Titled Tuesday Blitz"]
[Site "Chess.com"]
[Date "2020.12.29"]
[Round "2"]
[White "UCantHandleDenker"]
[Black "amintabatabaei"]
[Result "0-1"]
[WhiteElo "2578"]
[BlackElo "2912"]
[TimeControl "180+1"]
[EndTime "10:15:47 PST"]
[Termination "amintabatabaei won by resignation"]

1. Nf3 {[%clk 0:03:00.9]} 1... d5 {[%clk 0:02:58.7]} 2. g3 {[%clk 0:03:00]} 2...
g6 {[%clk 0:02:58.7]} 3. Bg2 {[%clk 0:02:59.2]} 3... Bg7 {[%clk 0:02:59.4]} 4.
O-O {[%clk 0:02:56.8]} 4... e5 {[%clk 0:02:59.5]} 5. d3 {[%clk 0:02:56.7]} 5...
Ne7 {[%clk 0:03:00]} 6. Nbd2 {[%clk 0:02:55.7]} 6... O-O {[%clk 0:02:59.8]} 7.
e4 {[%clk 0:02:54.9]} 7... Nbc6 {[%clk 0:02:53.1]} 8. c3 {[%clk 0:02:53.6]} 8...
Re8 {[%clk 0:02:51.7]} 9. b4 {[%clk 0:02:50.5]} 9... a6 {[%clk 0:02:51.9]} 10.
Qc2 {[%clk 0:02:49.6]} 10... h6 {[%clk 0:02:50.3]} 11. Bb2 {[%clk 0:02:48.1]}
11... Be6 {[%clk 0:02:50.3]} 12. a3 {[%clk 0:02:47.7]} 12... Qd7 {[%clk
0:02:50.4]} 13. Rfe1 {[%clk 0:02:47.5]} 13... Bh3 {[%clk 0:02:49.2]} 14. Rad1
{[%clk 0:02:37.1]} 14... Bxg2 {[%clk 0:02:33.7]} 15. Kxg2 {[%clk 0:02:36.7]}
15... Rad8 {[%clk 0:02:24.2]} 16. h3 {[%clk 0:02:12.8]} 16... g5 {[%clk
0:02:02]} 17. exd5 {[%clk 0:02:09.1]} 17... Qxd5 {[%clk 0:02:02]} 18. Nc4 {[%clk
0:01:52.6]} 18... Ng6 {[%clk 0:02:01.4]} 19. Ne3 {[%clk 0:01:45.6]} 19... Qd7
{[%clk 0:01:57.3]} 20. c4 {[%clk 0:01:29.8]} 20... Nd4 {[%clk 0:01:49.9]} 21.
Bxd4 {[%clk 0:01:24.4]} 21... exd4 {[%clk 0:01:50.8]} 22. Nd5 {[%clk 0:01:22.3]}
22... g4 {[%clk 0:01:38.9]} 23. Ng1 {[%clk 0:01:18.7]} 23... c6 {[%clk
0:01:34.3]} 24. Nb6 {[%clk 0:01:17.4]} 24... gxh3+ {[%clk 0:01:33.4]} 25. Nxh3
{[%clk 0:01:16.9]} 25... Qg4 {[%clk 0:01:34.3]} 26. Ng1 {[%clk 0:01:07.1]} 26...
h5 {[%clk 0:01:25.4]} 27. Rxe8+ {[%clk 0:01:02.4]} 27... Rxe8 {[%clk 0:01:26.3]}
28. Re1 {[%clk 0:01:02.2]} 28... Rxe1 {[%clk 0:01:25.3]} 0-1

[Event "*** Titled Tuesday Blitz"]
[Site "Chess.com"]
[Date "2020.12.29"]
[Round "2"]
[White "esteban062000"]
[Black "grunbergmihai"]
[Result "0-1"]
[WhiteElo "2194"]
[BlackElo "2419"]
[TimeControl "180+1"]
[EndTime "10:15:49 PST"]
[Termination "grunbergmihai won by resignation"]

1. Nf3 {[%clk 0:03:00.9]} 1... d5 {[%clk 0:03:00.9]} 2. c4 {[%clk 0:02:59.9]}
2... d4 {[%clk 0:02:53.5]} 3. b4 {[%clk 0:02:59.3]} 3... c5 {[%clk 0:02:54.4]}
4. b5 {[%clk 0:02:59.4]} 4... f6 {[%clk 0:02:52.5]} 5. d3 {[%clk 0:02:57.2]}
5... e5 {[%clk 0:02:52.2]} 6. g3 {[%clk 0:02:56.8]} 6... Bd6 {[%clk 0:02:50.6]}
7. Bg2 {[%clk 0:02:56.5]} 7... Ne7 {[%clk 0:02:50.7]} 8. O-O {[%clk 0:02:56.5]}
8... O-O {[%clk 0:02:51.6]} 9. Nbd2 {[%clk 0:02:55.5]} 9... Be6 {[%clk
0:02:51.3]} 10. a4 {[%clk 0:02:54.1]} 10... Qd7 {[%clk 0:02:50.8]} 11. Ne4
{[%clk 0:02:42.1]} 11... f5 {[%clk 0:02:50.4]} 12. Nxd6 {[%clk 0:02:40.9]} 12...
Qxd6 {[%clk 0:02:50]} 13. Ng5 {[%clk 0:02:34.8]} 13... Bc8 {[%clk 0:02:49.3]}
14. Qb3 {[%clk 0:02:27.5]} 14... Nd7 {[%clk 0:02:44.3]} 15. Ba3 {[%clk
0:02:20.6]} 15... Nf6 {[%clk 0:02:43.3]} 16. e3 {[%clk 0:02:03.5]} 16... h6
{[%clk 0:02:39.2]} 17. Nf3 {[%clk 0:01:51.8]} 17... e4 {[%clk 0:02:38.5]} 18.
dxe4 {[%clk 0:01:37.9]} 18... fxe4 {[%clk 0:02:37]} 19. Nd2 {[%clk 0:01:32.2]}
19... dxe3 {[%clk 0:02:33.6]} 20. Nxe4 {[%clk 0:01:32]} 20... Nxe4 {[%clk
0:02:31.7]} 21. Bxe4 {[%clk 0:01:31.9]} 21... Bh3 {[%clk 0:02:30]} 22. Bg2
{[%clk 0:01:25.5]} 22... exf2+ {[%clk 0:02:28.6]} 23. Kh1 {[%clk 0:01:21.6]}
23... Bxg2+ {[%clk 0:02:24.1]} 24. Kxg2 {[%clk 0:01:21.2]} 24... Nf5 {[%clk
0:02:23.4]} 25. Rad1 {[%clk 0:01:13.2]} 25... Qe6 {[%clk 0:02:18.9]} 26. Rd3
{[%clk 0:00:50]} 26... Qe4+ {[%clk 0:02:14]} 27. Rf3 {[%clk 0:00:46.2]} 27...
Nd4 {[%clk 0:02:12.9]} 28. Qe3 {[%clk 0:00:36]} 28... Qxf3+ {[%clk 0:02:10.1]}
29. Qxf3 {[%clk 0:00:35.8]} 29... Rxf3 {[%clk 0:02:10.8]} 30. Bxc5 {[%clk
0:00:34.5]} 30... Rd3 {[%clk 0:02:06.9]} 31. Rxf2 {[%clk 0:00:31.2]} 31... Rc8
{[%clk 0:02:04]} 32. Bxa7 {[%clk 0:00:30.1]} 32... Rxc4 {[%clk 0:02:03.4]} 33.
Re2 {[%clk 0:00:27]} 33... Nxe2 {[%clk 0:02:02.8]} 0-1

[Event "*** Titled Tuesday Blitz"]
[Site "Chess.com"]
[Date "2020.12.29"]
[Round "2"]
[White "LilRag"]
[Black "davigator"]
[Result "1-0"]
[WhiteElo "2470"]
[BlackElo "2275"]
[TimeControl "180+1"]
[EndTime "10:15:54 PST"]
[Termination "LilRag won by resignation"]

1. d4 {[%clk 0:03:00.9]} 1... Nf6 {[%clk 0:02:58.2]} 2. Nc3 {[%clk 0:03:00.1]}
2... d5 {[%clk 0:02:57.7]} 3. Bg5 {[%clk 0:03:00.5]} 3... Nbd7 {[%clk
0:02:56.7]} 4. Nf3 {[%clk 0:02:58.1]} 4... c6 {[%clk 0:02:56.6]} 5. Qd3 {[%clk
0:02:54.1]} 5... b5 {[%clk 0:02:56.7]} 6. a3 {[%clk 0:02:53]} 6... a5 {[%clk
0:02:56.7]} 7. e4 {[%clk 0:02:52.8]} 7... Rb8 {[%clk 0:02:38.6]} 8. e5 {[%clk
0:02:51.9]} 8... b4 {[%clk 0:02:35.2]} 9. exf6 {[%clk 0:02:48.8]} 9... bxc3
{[%clk 0:02:34.9]} 10. fxg7 {[%clk 0:02:44.5]} 10... Bxg7 {[%clk 0:02:34.3]} 11.
bxc3 {[%clk 0:02:44.8]} 11... O-O {[%clk 0:02:33]} 12. Be2 {[%clk 0:02:42]}
12... f6 {[%clk 0:02:32.9]} 13. Bh4 {[%clk 0:02:41.1]} 13... e5 {[%clk
0:02:33.3]} 14. dxe5 {[%clk 0:02:41.1]} 14... Re8 {[%clk 0:02:30.6]} 15. e6
{[%clk 0:02:38.2]} 15... Rxe6 {[%clk 0:02:28.3]} 16. Nd4 {[%clk 0:02:37.8]}
16... Nc5 {[%clk 0:02:24.6]} 17. Qf3 {[%clk 0:02:34.2]} 17... Ne4 {[%clk
0:02:13.5]} 18. Nxe6 {[%clk 0:02:28.2]} 18... Bxe6 {[%clk 0:02:12.5]} 19. O-O
{[%clk 0:02:28.9]} 19... Qd7 {[%clk 0:01:53.8]} 20. Rad1 {[%clk 0:02:25.9]}
20... Qe7 {[%clk 0:01:38.9]} 21. h3 {[%clk 0:02:21.2]} 21... Qxa3 {[%clk
0:01:37.9]} 22. Bd3 {[%clk 0:02:19.1]} 22... Nxc3 {[%clk 0:01:31.5]} 23. Ra1
{[%clk 0:02:15.7]} 23... Qc5 {[%clk 0:01:30.3]} 24. Bg3 {[%clk 0:02:13.5]} 24...
Re8 {[%clk 0:01:25.2]} 25. Rfe1 {[%clk 0:02:13.1]} 25... Nb5 {[%clk 0:01:16.7]}
26. Qh5 {[%clk 0:02:10.6]} 26... Kf8 {[%clk 0:01:09.4]} 27. Qxh7 {[%clk
0:02:03.7]} 27... Nd6 {[%clk 0:01:03.4]} 28. Rxa5 {[%clk 0:01:59]} 28... Qb4
{[%clk 0:00:57.6]} 29. c3 {[%clk 0:01:55.8]} 29... Bg8 {[%clk 0:00:49.9]} 30.
Rxe8+ {[%clk 0:01:48.8]} 30... Nxe8 {[%clk 0:00:48.8]} 31. cxb4 {[%clk
0:01:48.4]} 31... Bxh7 {[%clk 0:00:45.8]} 32. Bxh7 {[%clk 0:01:49.3]} 32... Kf7
{[%clk 0:00:45.5]} 33. Ra7+ {[%clk 0:01:48]} 33... Ke6 {[%clk 0:00:45.4]} 34.
Bg8+ {[%clk 0:01:47.4]} 34... Kf5 {[%clk 0:00:45.4]} 35. Re7 {[%clk 0:01:43.6]}
1-0

[Event "*** Titled Tuesday Blitz"]
[Site "Chess.com"]
[Date "2020.12.29"]
[Round "2"]
[White "PhoenixFire8"]
[Black "Supernotar"]
[Result "1/2-1/2"]
[WhiteElo "2453"]
[BlackElo "2861"]
[TimeControl "180+1"]
[EndTime "10:15:59 PST"]
[Termination "Game drawn by agreement"]

1. Nf3 {[%clk 0:03:00.9]} 1... c5 {[%clk 0:02:59.5]} 2. b3 {[%clk 0:03:00]} 2...
Nc6 {[%clk 0:02:59.7]} 3. Bb2 {[%clk 0:03:00.6]} 3... Nf6 {[%clk 0:02:59.9]} 4.
e3 {[%clk 0:03:00.5]} 4... g6 {[%clk 0:02:59.4]} 5. Bxf6 {[%clk 0:02:59.6]} 5...
exf6 {[%clk 0:02:59.6]} 6. c4 {[%clk 0:03:00.3]} 6... Bg7 {[%clk 0:02:59.4]} 7.
Nc3 {[%clk 0:03:00.8]} 7... f5 {[%clk 0:02:59.3]} 8. g3 {[%clk 0:03:00.5]} 8...
O-O {[%clk 0:02:59.3]} 9. Bg2 {[%clk 0:03:01.2]} 9... Ne7 {[%clk 0:02:59.2]} 10.
O-O {[%clk 0:02:48.2]} 10... d5 {[%clk 0:02:58.7]} 11. cxd5 {[%clk 0:02:48.8]}
11... Nxd5 {[%clk 0:02:58.4]} 12. Rc1 {[%clk 0:02:46]} 12... Nxc3 {[%clk
0:02:53.1]} 13. dxc3 {[%clk 0:02:46.9]} 13... Qc7 {[%clk 0:02:51.1]} 14. Nd2
{[%clk 0:02:44.4]} 14... Rb8 {[%clk 0:02:46.8]} 15. Qe2 {[%clk 0:02:42.7]} 15...
b6 {[%clk 0:02:46]} 16. a4 {[%clk 0:02:37.9]} 16... Bb7 {[%clk 0:02:45.9]} 17.
Bxb7 {[%clk 0:02:36.5]} 17... Qxb7 {[%clk 0:02:46.1]} 18. Nc4 {[%clk 0:02:36.9]}
18... Rfd8 {[%clk 0:02:42.4]} 19. Rfd1 {[%clk 0:02:35.4]} 19... h5 {[%clk
0:02:34]} 20. h4 {[%clk 0:02:33.2]} 20... a6 {[%clk 0:02:33.5]} 21. Rxd8+ {[%clk
0:02:19.3]} 21... Rxd8 {[%clk 0:02:33.2]} 22. Rd1 {[%clk 0:02:20.2]} 22... Rxd1+
{[%clk 0:02:31.7]} 23. Qxd1 {[%clk 0:02:20.3]} 23... b5 {[%clk 0:02:25.1]} 24.
Qd8+ {[%clk 0:02:17.2]} 24... Kh7 {[%clk 0:02:15.8]} 25. Nd6 {[%clk 0:02:07.3]}
25... Qd5 {[%clk 0:02:08.6]} 26. axb5 {[%clk 0:02:06.6]} 26... axb5 {[%clk
0:02:08.5]} 27. c4 {[%clk 0:02:04.1]} 27... bxc4 {[%clk 0:02:08.5]} 28. bxc4
{[%clk 0:02:03.7]} 28... Qe6 {[%clk 0:01:57.8]} 29. Qc7 {[%clk 0:01:55.9]} 29...
Kg8 {[%clk 0:01:54.4]} 30. Qc8+ {[%clk 0:00:59.4]} 30... Bf8 {[%clk 0:01:37.8]}
31. Qxe6 {[%clk 0:00:52.7]} 31... fxe6 {[%clk 0:01:38.7]} 1/2-1/2

[Event "*** Titled Tuesday Blitz"]
[Site "Chess.com"]
[Date "2020.12.29"]
[Round "2"]
[White "FontVella8"]
[Black "torsten64"]
[Result "1-0"]
[WhiteElo "2497"]
[BlackElo "2128"]
[TimeControl "180+1"]
[EndTime "10:16:04 PST"]
[Termination "FontVella8 won by resignation"]

1. e4 {[%clk 0:02:44.6]} 1... c5 {[%clk 0:02:59.2]} 2. Nf3 {[%clk 0:02:44.4]}
2... d6 {[%clk 0:02:58.1]} 3. d4 {[%clk 0:02:44.7]} 3... cxd4 {[%clk 0:02:57.9]}
4. Nxd4 {[%clk 0:02:45.3]} 4... Nf6 {[%clk 0:02:58]} 5. f3 {[%clk 0:02:45.8]}
5... a6 {[%clk 0:02:57]} 6. c4 {[%clk 0:02:45.6]} 6... e5 {[%clk 0:02:54.9]} 7.
Nb3 {[%clk 0:02:45.4]} 7... Be7 {[%clk 0:02:54.5]} 8. Nc3 {[%clk 0:02:45.6]}
8... Be6 {[%clk 0:02:54.2]} 9. Be3 {[%clk 0:02:45.9]} 9... Nbd7 {[%clk
0:02:51.7]} 10. Be2 {[%clk 0:02:44.9]} 10... Rc8 {[%clk 0:02:50.9]} 11. Nd5
{[%clk 0:02:44.9]} 11... Bxd5 {[%clk 0:02:47.4]} 12. cxd5 {[%clk 0:02:44.5]}
12... O-O {[%clk 0:02:46.1]} 13. O-O {[%clk 0:02:44.6]} 13... b5 {[%clk
0:02:39.5]} 14. Qd2 {[%clk 0:02:43.4]} 14... Nb6 {[%clk 0:02:38.7]} 15. Na5
{[%clk 0:02:43.1]} 15... Nc4 {[%clk 0:02:20.7]} 16. Bxc4 {[%clk 0:02:30.8]}
16... bxc4 {[%clk 0:02:18.9]} 17. Nc6 {[%clk 0:02:30.8]} 17... Qe8 {[%clk
0:02:06.4]} 18. Rfc1 {[%clk 0:02:30.3]} 18... Nd7 {[%clk 0:02:06.5]} 19. Rxc4
{[%clk 0:02:29.5]} 19... Nb8 {[%clk 0:02:06.1]} 20. Rac1 {[%clk 0:02:24.1]}
20... Nxc6 {[%clk 0:02:03.6]} 21. dxc6 {[%clk 0:02:23.1]} 21... f5 {[%clk
0:01:53.5]} 22. c7 {[%clk 0:02:22.6]} 22... fxe4 {[%clk 0:01:42.3]} 23. fxe4
{[%clk 0:02:22.8]} 23... Qd7 {[%clk 0:01:27.6]} 24. Qd5+ {[%clk 0:02:13.4]}
24... Kh8 {[%clk 0:01:25.4]} 25. Rc6 {[%clk 0:01:56.1]} 25... h6 {[%clk
0:01:23.4]} 26. b4 {[%clk 0:01:53.3]} 26... Kh7 {[%clk 0:01:06.6]} 27. a4 {[%clk
0:01:51.3]} 27... Qg4 {[%clk 0:00:52.5]} 28. b5 {[%clk 0:01:38.7]} 28... Qe2
{[%clk 0:00:51.1]} 29. Qd2 {[%clk 0:01:35.3]} 29... Qg4 {[%clk 0:00:42.3]} 30.
b6 {[%clk 0:01:32.8]} 1-0